[Event "Chinese Championship-B Women 2024"]
[Site "Liaocheng"]
[Date "2024.04.26"]
[Round "11.4"]
[White "Yang, Yijing"]
[Black "Guo, Weibao"]
[Result "1-0"]
[ECO "A13"]
[WhiteElo "2040"]
[BlackElo "1954"]
[Annotator "TA"]
[PlyCount "65"]
[EventDate "2024.04.24"]
[EventType "swiss"]
[EventCountry "CHN"]
[SourceTitle "playchess.com"]
[Source "ChessBase"]
[SourceQuality "1"]
[TimeControl "5400+30"]

{[%evp 13,65,0,8,0,29,27,25,25,35,38,35,11,34,42,37,2,14,18,17,18,12,11,24,17,60,64,68,68,73,75,93,66,66,66,96,95,146,93,118,71,88,97,108,108,108,113,610,620,614,613,612,597,575,468]} 1. c4 {[%emt 0:00:04]} e6 {[%emt 0:00:56]} 2. Nf3 {[%emt 0:00:11]} Nf6 {[%emt 0:01:12]} 3. b3 {[%emt 0:01:29]} d5 {[%emt 0:02:06]} 4. e3 {[%emt 0:00:14]} c5 {[%emt 0:01:52]} 5. Bb2 {[%emt 0:00:07]} Nc6 {[%emt 0:00:40]} 6. cxd5 {[%emt 0:00:20]} exd5 {[%emt 0:00:28]} 7. Bb5 {[%emt 0:00:11]} Bd6 {[%emt 0:01:56]} 8. d4 {[%emt 0:04:49]} O-O {[%emt 0:14:08]} 9. dxc5 {[%emt 0:08:53]} Bxc5 {[%emt 0:03:25] White must now prevent ...Qa5+.} 10. O-O {[%emt 0:00:21] White has an edge.} Bg4 {[%emt 0:03:30]} 11. h3 {[%emt 0:09:03]} Bh5 {[%emt 0:09:26]} 12. Nc3 {[%emt 0:07:05]} a6 {[%emt 0:08:13]} 13. Be2 {[%emt 0:01:37]} Ba7 {[%emt 0:05:20]} 14. Rc1 {[%emt 0:10:51]} Qd7 {[%emt 0:08:51]} 15. Na4 {[%emt 0:11:33]} Ne4 {[%emt 0:06:15]} 16. Ne5 {[%emt 0:03:45]} Nxe5 {[%emt 0:00:25]} 17. Bxh5 {[%emt 0:00:16]} Nc6 {[%emt 0:06:34]} 18. Bf3 {[%emt 0:05:57] Bxe4 is the strong threat.} Qf5 {[%emt 0:03:17]} 19. Nc3 {[%emt 0:01:01]} Nxc3 {[%emt 0:02:18]} 20. Bxc3 {[%emt 0:01:09] A strong pair of Bishops.} Rad8 {[%emt 0:00:06][%cal Ba8d8,Bd8d6,Bd6g6,Bg6c6][%mdl 32]} 21. Qc2 {[%emt 0:02:36]} Qg5 {[%emt 0:05:55]} 22. Rcd1 {[%emt 0:03:08]} Rd6 {[%emt 0:01:05]} 23. Rd2 {[%emt 0:01:43]} Rfd8 {[%emt 0:00:52]} 24. Rfd1 {[%emt 0:00:11]} h6 {[%emt 0:01:57]} (24... d4 $142) 25. Qb2 {[%emt 0:00:54]} (25. h4 $142 $1 {[%cal Rh4g5]} Qxh4 26. Bxd5 (26. Rxd5 Bb8 $16)) 25... b5 {[%emt 0:01:43]} 26. b4 {[%emt 0:02:53]} (26. h4 $142 Qf5 27. Bxg7) 26... Ne7 {[%emt 0:02:41]} 27. Be5 {[%emt 0:02:35]} Rg6 {[%emt 0:02:37]} 28. Bf4 {[%emt 0:00:38]} (28. Bxd5 $2 {is the wrong capture.} Rxd5 29. Bg3 Rxd2 30. Qxd2 Bxe3 31. Qxe3 Qxe3 32. Rd8+ Kh7 33. fxe3 Rxg3 $19) 28... Qf5 {[%emt 0:01:12]} 29. Bg4 {[%emt 0:03:10]} Qe4 {[%emt 0:00:34][%mdl 8192] [#] This costs Black the game.} (29... Qf6 $16) 30. Rd4 $1 $18 {[%emt 0:00:13][%mdl 512] White is clearly winning.} Bxd4 {[%emt 0:01:55]} 31. Rxd4 {[%emt 0:00:05]} Rc6 {[%emt 0:00:50]} 32. Rxe4 {[%emt 0:01:22]} dxe4 {[%emt 0:00:01]} 33. Qe5 {[%emt 0:00:11] Weighted Error Value: White=0.07 (flawless) /Black=0.33.  Loses game:     	---       	Black=1      Mistake:       	White=2     	Black=1      Inaccurate:     	White=1     	Black=3      OK:         	White=13    	Black=8      Best:        	White=1     	---        Brilliant:      	White=1     	---} 1-0

[Event "Chinese Championship-B Women 2024"]
[Site "Liaocheng"]
[Date "2024.04.26"]
[Round "11.5"]
[White "Zhao, Chenyu"]
[Black "Chu, Ruotong"]
[Result "0-1"]
[ECO "C10"]
[WhiteElo "1909"]
[BlackElo "2124"]
[Annotator "TA"]
[PlyCount "166"]
[EventDate "2024.04.24"]
[EventType "swiss"]
[EventCountry "CHN"]
[SourceTitle "playchess.com"]
[Source "ChessBase"]
[SourceQuality "1"]
[TimeControl "5400+30"]

{[%evp 16,166,50,21,41,18,31,16,41,20,25,19,71,-11,0,-41,182,181,315,331,398,97,73,80,87,90,68,102,62,74,86,79,1226,66,70,-175,0,-24,-32,-209,-200,-294,-51,-51,-46,-52,0,0,0,-57,-15,-17,-11,-14,-14,-50,-46,-31,-32,-43,-25,-27,-35,-26,-32,-98,-97,-105,-93,-130,-125,-122,-131,-124,-118,-107,-118,-153,-157,-177,-178,-173,-181,-172,-148,-148,-149,-129,-101,-238,-185,-250,-250,-247,-247,-247,-243,-240,-233,-223,-223,-231,-64,-29954,-29953,-29958,-29960,-29964,-29966,-29971,-29973,-29973,-29974,-29974,-29975,-29975,-29976,-29976,-29977,-29977,-29978,-29977,-29977,-29979,-29980,-29980,-29981,-29981,-29982,-29982,-29981,-29981,-29982,-29982,-29983,-29983,-29984,-29989,-29990,-29990,-29986,-29986,-29986,-29993,-29992,-29992,-29993,-29993,-29994,-29994,-29995,-29996,-399]} 1. e4 {[%emt 0:00:03]} e6 {[%emt 0:10:53]} 2. d4 {[%emt 0:00:06]} d5 {[%emt 0:01:10]} 3. Nd2 {[%emt 0:00:06]} dxe4 {[%emt 0:00:06]} 4. Nxe4 {[%emt 0:00:06]} Bd7 {[%emt 0:00:04]} 5. Bd3 {[%emt 0:03:31]} Bc6 {[%emt 0:00:18]} 6. Nf3 {[%emt 0:02:05]} Nd7 {[%emt 0:00:06]} 7. O-O {[%emt 0:01:21]} Ngf6 {[%emt 0:00:07]} 8. Qe2 {[%emt 0:00:53]} Be7 {[%emt 0:01:57]} 9. c3 {[%emt 0:03:24]} O-O {[%emt 0:02:34]} 10. Neg5 {[%emt 0:04:11][%cal Be4g5,Bg5h3,Bh3f4][%mdl 32]} h6 {[%emt 0:01:02]} 11. Nh3 {[%emt 0:03:37]} b6 {[%emt 0:03:36] The position is equal.} 12. Ne5 {[%emt 0:02:07]} Bb7 {[%emt 0:01:09]} 13. Nf4 {[%emt 0:08:50]} c5 {[%emt 0:03:16]} (13... Bd6 $11) 14. Re1 {[%emt 0:05:12]} (14. Neg6 $1 $16 {Strongly threatening Nxe6.} fxg6 15. Qxe6+ Rf7 16. Bc4) 14... cxd4 $11 {[%emt 0:02:23]} 15. Neg6 {[%emt 0:09:59] Dodges Nxe5} Re8 $2 {[%emt 0:01:45] [#]} (15... fxg6 $2 16. Qxe6+ Rf7 17. Bxg6 $18) (15... e5 $15 16. cxd4 Re8 (16... fxg6 17. dxe5 Nd5 18. Nxg6 $15) 17. Nxe7+ (17. Nxe5 Bd6 $17) 17... Qxe7 (17... Rxe7 18. Bc4 $14)) 16. Nxe6 $1 $18 {[%emt 0:02:08][%mdl 512]} Qc8 {[%emt 0:00:01] [#]} (16... Bc5 {keeps fighting.} 17. Nxd8 Rxe2 18. Rxe2 (18. Bxe2 Rxd8 19. Nf4 dxc3 $16) 18... Rxd8) (16... Bd6 17. Nxd8) 17. Nxg7 $1 {[%emt 0:01:52][%mdl 512]} Kxg7 {[%emt 0:16:26] [#]} (17... Qc6 18. Qf1) 18. Qd2 $2 {[%emt 0:02:33]} fxg6 $16 {[%emt 0:09:12]} 19. Qxh6+ {[%emt 0:00:13]} Kg8 {[%emt 0:00:01]} 20. Qxg6+ {[%emt 0:02:04]} Kh8 {[%emt 0:00:03] aiming for ...Nf8.} 21. Qh6+ {[%emt 0:13:30][%mdl 1024] White has compensation.} Kg8 {[%emt 0:00:09]} 22. Qg5+ {[%emt 0:00:45]} (22. cxd4 Bf8 23. Rxe8 Qxe8 $11) 22... Kh8 {[%emt 0:00:14]} 23. Qh4+ {[%emt 0:02:18]} (23. cxd4 $2 Nh7 24. Qg6 Ndf8 $19) 23... Kg7 $2 {[%emt 0:04:05][%mdl 8192]} (23... Kg8 $16) 24. Qg3+ $2 {[%emt 0:04:43]} (24. Qxd4 $2 Qc5 25. Qh4 Qh5 26. Qxh5 Nxh5 $19) (24. Bh6+ $1 $18 Kh8 25. Be3+ (25. cxd4 Qc6 $16) (25. Bf8+ Kg8 $16) 25... Kg8 26. Qg5+ (26. Qxd4 $2 Qc6 $19) (26. Bxd4 Kf7 $11) 26... Kf8 27. Qh6+ (27. Bxd4 Qc6 $16) 27... Kg8 28. Qg6+ (28. cxd4 Bf8 $17) (28. Bxd4 Qc6 $16) 28... Kh8 29. Bxd4) 24... Kh8 $14 {[%emt 0:00:24] Threatens to win with ...Nh7.} 25. Bg6 {[%emt 0:01:07] [#]} (25. cxd4 Nh7 26. Bf4 Rg8 27. Rxe7 Rxg3 $15) (25. Qh3+ $1 $14 {stays ahead.} Kg8 26. Bf5 (26. Qg3+ Kh8 $11)) 25... Qc5 $2 {[%emt 0:08:35]} 26. Qh3+ {[%emt 0:03:57]} (26. Bf4 $5) 26... Kg7 $1 {[%emt 0:04:27]} (26... Kg8 27. Bh6 Bd6 28. Bxe8 Rxe8 29. Rxe8+ Nxe8 30. Qxd7 $16) 27. cxd4 $2 {[%emt 0:05:48]} (27. Qh6+ $15 Kg8 28. Bxe8 Rxe8 29. Qg6+ Kh8 30. Bg5) 27... Qd5 $19 {[%emt 0:00:29]} (27... Qxd4 28. Bf5 Bf8 29. Be3 $15 (29. Qh6+ $2 Kg8 $19)) 28. Bf5 {[%emt 0:00:33] [#]} (28. Qh6+ {might work better.} Kg8 29. Be4 Qxe4 (29... Nxe4 30. Qg6+ Kh8 31. Qh6+ Kg8 32. Qg6+ Kh8 33. Qh6+ Kg8 $11) 30. Rxe4 Bxe4 31. f3) 28... Qxg2+ $2 {[%emt 0:03:07]} 29. Qxg2+ $15 {[%emt 0:00:07]} Bxg2 {[%emt 0:00:05]} 30. Kxg2 {[%emt 0:00:46]} Bb4 {[%emt 0:00:09]} (30... Nf8 $15) 31. Rg1 $11 {[%emt 0:00:43]} Kf7 {[%emt 0:00:10]} 32. Be3 {[%emt 0:02:23]} (32. Kf3 $11) 32... Rg8+ {[%emt 0:02:28]} 33. Kf3 {[%emt 0:00:31]} Rxg1 {[%emt 0:03:19]} 34. Rxg1 {[%emt 0:00:02]} Rh8 {[%emt 0:00:10]} 35. h3 {[%emt 0:01:31]} Nf8 {[%emt 0:00:17]} 36. Rc1 {[%emt 0:01:18]} Bd6 {[%emt 0:06:25] Wards off Rc7+} 37. Rc6 {[%emt 0:01:08]} Rh5 {[%emt 0:00:08]} 38. Bg4 {[%emt 0:02:20] A strong pair of Bishops.} Rd5 {[%emt 0:00:14]} 39. Ke2 {[%emt 0:01:02] And now Bf3 would win.} Ne6 {[%emt 0:01:40]} 40. Rc4 {[%emt 0:03:12]} ({White should try} 40. Kd3 $15) 40... Nxg4 $17 {[%emt 0:03:59]} 41. hxg4 {[%emt 0:00:22]} b5 {[%emt 0:00:03] Black is more active.} 42. Rc6 {[%emt 0:04:11]} Nxd4+ {[%emt 0:00:14]} 43. Bxd4 {[%emt 0:00:05]} Rxd4 {[%emt 0:00:03][%mdl 4096] Endgame. KRB-KR} 44. Ke3 {[%emt 0:00:14]} Rd1 {[%emt 0:03:09]} (44... Rxg4 $2 45. Rxd6 Rg1 46. Rd7+ Ke6 47. Rxa7 $18) 45. Ke2 {[%emt 0:00:26]} Rd5 {[%emt 0:00:20]} 46. Ra6 {[%emt 0:00:26]} Bc5 {[%emt 0:00:43]} 47. Rc6 {[%emt 0:00:27]} Re5+ {[%emt 0:01:41]} 48. Kf3 {[%emt 0:00:23]} Bd4 {[%emt 0:00:35]} 49. b3 {[%emt 0:00:32]} Re1 {[%emt 0:03:24]} 50. Rd6 {[%emt 0:00:39]} Bb6 {[%emt 0:00:14]} 51. Rd5 {[%emt 0:01:10]} b4 {[%emt 0:02:45] ...Rf1 would now be deadly.} 52. Kg3 {[%emt 0:01:33]} (52. Rb5 $17) 52... Rg1+ $19 {[%emt 0:00:47]} 53. Kf3 {[%emt 0:00:27]} (53. Kh3 $142) 53... Rf1 {[%emt 0:01:43]} 54. Rd2 {[%emt 0:00:03]} Kf6 {[%emt 0:00:06]} 55. Kg2 {[%emt 0:00:15]} Re1 {[%emt 0:00:16]} 56. f4 {[%emt 0:00:52]} Rg1+ {[%emt 0:02:09]} 57. Kf3 {[%emt 0:00:24]} Rf1+ {[%emt 0:00:21]} 58. Ke4 {[%emt 0:00:46]} Rf2 $2 {[%emt 0:00:13]} (58... Re1+ $19 59. Kf3 Rf1+ 60. Kg3 Bc7) 59. Rxf2 $4 {[%emt 0:01:04][%mdl 8192]} (59. g5+ $15 Ke6 60. Rd1) 59... Bxf2 $15 {[%emt 0:00:03] KB-KP. Black mates.} 60. Kd5 {[%emt 0:00:51]} Be3 {[%emt 0:01:19]} 61. Kc4 {[%emt 0:00:34] [#]} a5 $1 {[%emt 0:00:12]} ({Stronger than} 61... Bxf4 62. Kxb4 Be3 (62... Kg5 63. Ka5 $11) 63. Ka5 $11) 62. Kb5 {[%emt 0:01:53]} Bxf4 {[%emt 0:00:05]} 63. Kxa5 {[%emt 0:00:04] [#] KB-K3P} Bd6 $1 {[%emt 0:00:03]} 64. Kb5 {[%emt 0:00:48]} Kg5 {[%emt 0:00:06]} 65. Kc6 {[%emt 0:00:41]} Bf8 {[%emt 0:00:04]} 66. Kd5 {[%emt 0:00:17]} Kxg4 {[%emt 0:00:04] KB-KPP} 67. Ke4 {[%emt 0:00:14]} Be7 {[%emt 0:00:04]} 68. Ke3 {[%emt 0:00:20]} Kf5 {[%emt 0:00:04]} 69. Kd4 {[%emt 0:00:32]} Kf4 {[%emt 0:00:05]} 70. Kd3 {[%emt 0:00:25]} Kf3 {[%emt 0:00:06]} 71. Kd2 {[%emt 0:00:18]} Ke4 {[%emt 0:00:02]} 72. Ke2 {[%emt 0:00:16]} Kd4 {[%emt 0:00:03]} 73. Kd2 {[%emt 0:00:10]} Bf8 {[%emt 0:00:03]} 74. Kc2 {[%emt 0:00:27]} Ke3 {[%emt 0:00:03]} 75. Kc1 {[%emt 0:01:02]} Kd3 {[%emt 0:00:05]} 76. Kb2 {[%emt 0:01:17]} Kd2 {[%emt 0:00:17]} 77. Kb1 {[%emt 0:00:07]} Kc3 {[%emt 0:00:21]} 78. Kc1 {[%emt 0:00:11]} Bh6+ {[%emt 0:00:03]} 79. Kb1 {[%emt 0:00:04]} Bg5 {[%emt 0:00:03]} 80. Ka1 {[%emt 0:00:46]} Kc2 {[%emt 0:00:07][%cal Rg5f6]} 81. a3 {[%emt 0:00:25]} bxa3 {[%emt 0:00:03]} (81... Kxb3 82. axb4 Bf6+ 83. Kb1 $11) 82. Ka2 {[%emt 0:00:10]} Be7 {[%emt 0:00:04]} 83. b4 {[%emt 0:00:13]} Bxb4 {[%emt 0:00:04] Never resign too early!   Weighted Error Value: White=0.67/Black=0.37.  Loses game:     	White=2     	Black=2      Missed win:     	White=2     	Black=3      Mistake:       	White=6     	Black=3      Inaccurate:     	White=3     	Black=1      OK:         	White=19    	Black=21     Best:        	White=1     	Black=9      Strong:       	---       	Black=1      Brilliant:      	White=2     	---} 0-1

[Event "Chinese Championship-B Women 2024"]
[Site "Liaocheng"]
[Date "2024.04.26"]
[Round "11.6"]
[White "Shao, Qiyu"]
[Black "Ren, Xiaoyi"]
[Result "0-1"]
[ECO "E91"]
[WhiteElo "1764"]
[BlackElo "2075"]
[Annotator "TA"]
[PlyCount "92"]
[EventDate "2024.04.24"]
[EventType "swiss"]
[EventCountry "CHN"]
[SourceTitle "playchess.com"]
[Source "ChessBase"]
[SourceQuality "1"]
[TimeControl "5400+30"]

{[%evp 21,92,4,0,0,-8,-14,0,-20,0,0,0,0,-3,-45,-12,-18,-34,-37,-40,-41,-37,-45,-9,-47,-45,-95,-33,-42,-40,-31,-25,-41,-26,-69,-9,-18,-18,-55,-37,-100,0,0,0,-18,-13,-18,-12,-509,-18,-13,-26,-22,-26,-25,-25,-412,-420,-29983,-818,-806,-797,-799,-787,-712,-564,-770,-581,-1845,-1834,-29991,-29978,-29995,-29996]} 1. c4 {[%emt 1:31:00]} g6 {[%emt 0:06:18]} 2. Nc3 {[%emt 0:00:00]} Bg7 {[%emt 0:00:03]} 3. d4 {[%emt 0:00:00]} Nf6 {[%emt 0:00:04]} 4. e4 {[%emt 0:00:00]} d6 {[%emt 0:00:02]} 5. Nf3 {[%emt 0:00:00]} Bg4 {[%emt 0:00:34]} 6. Be2 {[%emt 0:00:00]} O-O {[%emt 0:00:50]} 7. h3 {[%emt 0:00:00]} Bxf3 {[%emt 0:00:09]} 8. Bxf3 {[%emt 0:00:00]} Nc6 {[%emt 0:01:33]} 9. O-O {[%emt 0:00:00]} e5 {[%emt 0:00:11]} 10. d5 {[%emt 0:00:00]} Nd4 {[%emt 0:00:21]} 11. Be3 {[%emt 0:00:00]} Nd7 {[%emt 0:06:57]} 12. Nb5 {[%emt 0:00:00][%cal Rb5d4]} Nxf3+ {[%emt 0:05:26]} 13. Qxf3 {[%emt 0:00:00]} f5 {[%emt 0:00:08]} 14. Rac1 {[%emt 0:00:00] The position is equal.} (14. Bxa7 c6 15. dxc6 bxc6 $17) (14. Nxa7 $2 f4 15. Nb5 fxe3 16. Qxe3 Nf6 $19) 14... f4 {[%emt 0:01:26]} 15. Bd2 {[%emt 0:00:00]} a6 {[%emt 0:01:09]} 16. Nc3 {[%emt 0:00:00]} h5 {[%emt 0:01:31]} 17. g3 {[%emt 0:00:00]} fxg3 {[%emt 0:02:31]} 18. Qxg3 {[%emt 0:00:00]} Kh7 {[%emt 0:00:05]} 19. Ne2 {[%emt 0:00:00]} Nc5 {[%emt 0:03:48]} 20. f3 {[%emt 0:00:00]} a5 {[%emt 0:03:53]} 21. Be3 {[%emt 0:00:00]} Bh6 {[%emt 0:03:21]} 22. Bxh6 {[%emt 0:00:00]} (22. Bxc5 $5 Bxc1 (22... dxc5 23. Qxe5 Be3+ 24. Kg2 $11) 23. Nxc1 $11) 22... Kxh6 {[%emt 0:00:06]} 23. f4 {[%emt 0:00:00]} (23. Rc3 $15) 23... Qe7 {[%emt 0:01:32]} (23... Nxe4 24. Qe3 Nc5 25. fxe5+ Qg5+ 26. Qxg5+ Kxg5 27. e6 $16) (23... h4 $17 24. Qg4 exf4 25. Nxf4 Qg5 26. Qxg5+ Kxg5 27. Ne6+ Nxe6 28. dxe6 Rf4 29. Rxf4 Kxf4 30. Rf1+ Kxe4) 24. fxe5 $1 $15 Qxe5 {[%emt 0:01:54]} 25. Qxe5 {[%emt 0:00:00]} dxe5 {[%emt 0:00:03]} 26. Nc3 {[%emt 0:00:00]} Nd3 {[%emt 0:00:26][%csl LRb2,LRc1]} 27. Rb1 {[%emt 0:04:23]} c6 {[%emt 0:07:06] Black is more active.} (27... Rxf1+ $15 28. Rxf1 Nxb2) 28. b3 {[%emt 0:00:08]} g5 {[%emt 0:02:30]} 29. Rbd1 {[%emt 0:02:43]} Nf4 {[%emt 0:04:06]} 30. Kh2 {[%emt 0:00:37] [#]} (30. dxc6 $1 $15 bxc6 31. Rd6+ Kg7 32. Kh2) 30... Rad8 {[%emt 0:01:28]} (30... g4 $1 $17 31. d6 Kg5 (31... Nxh3 32. Rxf8 Rxf8 33. d7 $17) (31... gxh3 32. d7 $11) 32. hxg4 hxg4) 31. Na4 $11 {[%emt 0:00:40]} g4 {[%emt 0:02:14]} 32. hxg4 {[%emt 0:00:47]} hxg4 {[%emt 0:00:04] With the idea ...Kg5.} 33. Nc5 {[%emt 0:00:34]} Kg5 {[%emt 0:01:34] Hoping for ...Rh8+.} 34. Nxb7 $2 {[%emt 0:03:27][%mdl 8192]} (34. Kg3 $11 {and White has nothing to worry.} Rf6 35. Rh1 (35. Nxb7 $2 Rh8 $19)) 34... Rd7 $2 {[%emt 0:00:42]} (34... Rh8+ $19 35. Kg1 Rdg8) 35. Nc5 $1 {[%emt 0:00:21]} (35. Nxa5 Rh8+ 36. Kg1 Rdh7 37. Rxf4 exf4 (37... Rh1+ $2 38. Kf2 $19) 38. Kf1 Rh2 (38... Rh1+ $2 39. Ke2 $19) 39. dxc6 f3 (39... Rxa2 40. Rd5+ Kf6 41. e5+ Kg5 42. e6+ Kg6 43. Rh5 Rxh5 44. Kg1 f3 45. e7 Rg2+ 46. Kf1 Rh1#) (39... Rh1+ $2 40. Ke2 $19) 40. Rd4 g3 (40... Rxa2 41. Rd5+ Kf4 42. Rf5+ Ke3 43. Rxf3+ gxf3 44. Kg1 Ra1#) 41. Rd5+ Kg4) 35... Rh7+ {[%emt 0:00:52]} 36. Kg1 {[%emt 0:00:11][%cal Of1f4] Threatens to win with Rxf4!} Rfh8 $36 {[%emt 0:03:00][%mdl 2048] Black fights for an advantage.} (36... Rh6 {simplifies} 37. Ne6+ Nxe6 38. dxe6 Rxf1+ 39. Rxf1 Rxe6 40. c5 Re7) 37. Ne6+ $1 {[%emt 0:01:19]} Kg6 {[%emt 0:06:58]} 38. Nxf4+ $2 {[%emt 0:00:21][%mdl 8192]} (38. Rxf4 $11 {and White is okay.} Rh1+ 39. Kg2 Rxd1 40. Rxg4+ Kf6 41. Rg5) 38... exf4 {[%emt 0:00:04][%mdl 4096] Endgame. KRR-KRR} 39. d6 {[%emt 0:00:22] [#]} (39. dxc6 $19 Rh1+ 40. Kf2 R8h2+ (40... R1h2+ $2 41. Ke1 $19) 41. Ke1) 39... Rh2 {[%emt 0:02:31]} (39... Rh1+ $142 40. Kf2 R8h2+ (40... R1h2+ $2 41. Ke1 $19) 41. Ke1 g3 (41... Kf6 42. Rd3 $14) 42. Rxh1 Rxh1+ 43. Ke2 Rxd1 (43... f3+ $2 44. Kxf3 Rxd1 45. Kxg3 $19) (43... g2 $2 44. Rg1 $19) 44. Kxd1 g2 45. d7 g1=Q+ (45... g1=R+ 46. Kc2 $11) 46. Kd2 Qe3+ 47. Kc2 Qd4 (47... Qxe4+ 48. Kd2 Qe3+ 49. Kc2 Qd4 50. Kc1 Qxd7 51. Kc2 f3 52. b4 f2 53. bxa5 f1=Q 54. Kb3 Qb1+ 55. Ka4 c5+ 56. Ka3 Qb4#) 48. d8=B Qxd8 49. e5 f3 50. e6 f2 51. e7 Qxe7 (51... f1=Q 52. exd8=Q Qe2+ 53. Qd2 $16) 52. Kb2 f1=Q (52... f1=B 53. Kc3 Qe5+ 54. Kc2 Qe2+ 55. Kc3 Qd3+ 56. Kb2 Qd2+ 57. Ka3 c5 58. Ka4 Qb4#) 53. c5 Qf2+ (53... Qxc5 $2 54. a4 Qg2+ 55. Kb1 Qcg1#) (53... Qee2+ $2 54. Ka3 Qc1+ 55. Ka4 Qxa2#) 54. Kc3 Qexc5+ 55. Kd3 Qfe3#) 40. Rxf4 $19 {[%emt 0:03:03]} Rh1+ {[%emt 0:00:09]} (40... Rxa2 41. d7 (41. Rxg4+ Kf6 $18) 41... Kg5 42. Rf5+ (42. d8=Q+ Rxd8 43. Rf5+ Kh4 $18) (42. d8=R Kxf4 43. Rxh8 Kxe4 $18) 42... Kg6 43. d8=Q $18 (43. d8=R Rxd8 44. Rxd8 Kg7 $18)) 41. Kf2 {[%emt 0:00:06]} Rxd1 {[%emt 0:00:13]} 42. Rxg4+ {[%emt 0:00:30]} Kh5 {[%emt 0:00:41]} 43. Rf4 {[%emt 0:00:06]} Rxd6 {[%emt 0:00:04] Strongly threatening ...Kg5.} 44. Rf5+ {[%emt 0:00:04]} Kg4 {[%emt 0:00:17] ( -> ...Rhd8)} 45. Rxa5 {[%emt 0:00:18]} Kf4 {[%emt 0:00:05]} 46. Ra7 {[%emt 0:00:42]} Rd2+ {[%emt 0:00:29] Weighted Error Value: White=0.88/Black=0.64.  Loses game:     	White=2     	---        Missed win:     	---       	Black=1      Mistake:       	White=3     	Black=4      Inaccurate:     	White=5     	Black=2      OK:         	White=3     	Black=11     Best:        	White=4     	Black=1      Strong:       	White=3     	---} 0-1

[Event "Chinese Championship-B Women 2024"]
[Site "Liaocheng"]
[Date "2024.04.26"]
[Round "11.7"]
[White "Wang, Xiaoyan"]
[Black "Men, Jiayi"]
[Result "1/2-1/2"]
[ECO "A85"]
[WhiteElo "1932"]
[BlackElo "1845"]
[Annotator "TA"]
[PlyCount "60"]
[EventDate "2024.04.24"]
[EventType "swiss"]
[EventCountry "CHN"]
[SourceTitle "playchess.com"]
[Source "ChessBase"]
[SourceQuality "1"]
[TimeControl "5400+30"]

{[%evp 15,60,31,47,36,36,30,43,-4,52,-16,-17,-21,24,31,41,-8,-12,-81,-58,-80,-86,-86,-64,-62,20,-11,114,116,112,104,175,184,190,201,175,191,188,168,286,269,306,319,324,290,283,0,0]} 1. d4 {[%emt 0:00:03]} d5 {[%emt 0:00:06]} 2. c4 {[%emt 0:00:03]} e6 {[%emt 0:00:09]} 3. Nc3 {[%emt 0:00:04]} f5 {[%emt 0:00:22]} 4. Nf3 {[%emt 0:07:42]} c6 {[%emt 0:01:28]} 5. e3 {[%emt 0:01:03]} Nf6 {[%emt 1:30:55]} 6. Bd3 {[%emt 0:00:41]} Bd6 {[%emt 0:00:30]} 7. O-O {[%emt 0:01:33]} O-O {[%emt 0:00:00]} 8. b3 {[%emt 0:00:30]} Ne4 {[%emt 0:00:00]} 9. Ne2 {[%emt 0:00:54]} Nd7 {[%emt 0:00:00]} 10. Bb2 {[%emt 0:05:22]} Qf6 {[%emt 0:00:00]} 11. Ng3 {[%emt 0:08:21]} (11. Nf4 $14) 11... g5 {[%emt 0:00:00]} ({Better is} 11... Qh6 $11) 12. Nd2 {[%emt 0:00:52]} (12. Nh5 $14 Qh6 13. Ne5) 12... Qh6 $11 {[%emt 0:00:00]} 13. Bxe4 {[%emt 0:11:46]} fxe4 {[%emt 0:00:00]} (13... dxe4 {simplifies} 14. Qh5 Qxh5 15. Nxh5 Kf7) 14. Qe2 {[%emt 0:01:13]} b6 {[%emt 0:00:00]} 15. Rac1 {[%emt 0:02:17]} (15. f3 $14 {feels stronger.}) 15... Ba6 {[%emt 0:00:00]} 16. Qg4 {[%emt 0:02:25]} (16. f3 $11 {remains equal.}) 16... Rae8 $1 $17 {[%emt 0:00:00]} 17. f4 {[%emt 0:00:14]} Nf6 $1 {[%emt 0:00:00]} 18. Qxg5+ {[%emt 0:00:45]} Qxg5 {[%emt 0:00:00]} 19. fxg5 {[%emt 0:00:04]} Bxg3 {[%emt 0:00:00]} (19... Ng4 $15 20. Rxf8+ Rxf8) 20. Rxf6 {[%emt 0:15:04]} Bh4 {[%emt 0:00:00] [#]} (20... Rxf6 $11 21. gxf6 Bh4) 21. Rf4 $1 $16 {[%emt 0:04:57]} Rxf4 {[%emt 0:00:00]} (21... Bxg5 $2 22. Rg4 $18) 22. exf4 {[%emt 0:00:02] Strongly threatening g3.} e3 {[%emt 0:00:00]} (22... h6 $16 {was necessary.}) 23. Nf3 $18 {[%emt 0:00:17]} Bf2+ {[%emt 0:00:00]} 24. Kf1 {[%emt 0:00:15]} b5 {[%emt 0:00:00][%cal Bb6b5,Bb5c4][%mdl 32]} 25. Bc3 {[%emt 0:02:39]} bxc4 {[%emt 0:00:00]} 26. b4 {[%emt 0:00:10]} e5 {[%emt 0:00:00]} (26... Kg7 $142 27. Ne5 h6 28. gxh6+ (28. Nxc6 hxg5 29. fxg5 Bb5 $11) 28... Kxh6 29. Ng4+ (29. Nxc6 Rh8 $16) 29... Kg6 30. Nxf2 exf2 31. Kxf2 Rh8) 27. Nxe5 {[%emt 0:05:30]} (27. dxe5 Rf8 $16) 27... Rf8 {[%emt 0:00:00]} 28. g3 {[%emt 0:00:27]} (28. Nxc6 Rxf4 29. Ke2 (29. Nxa7 Bh4+ 30. Ke2 Rf2+ 31. Kxe3 Rf7 $19) 29... Kg7 $11) 28... Bc8 {[%emt 0:00:00]} 29. Ke2 {[%emt 0:03:06]} (29. Nxc6 Bh3+ 30. Ke2 Bg4+ 31. Kf1 Bh3+ 32. Ke2 Bg4+ 33. Kf1 Rxf4 34. gxf4 (34. Ne7+ Kg7 $11) 34... Bh3+ 35. Ke2 Bg4+ 36. Kf1 Bh3+ 37. Ke2 Bg4+ 38. Kf1 $11) 29... Re8 {[%emt 0:00:00][%cal Oe8e5] [#]} 30. Be1 $2 {[%emt 0:06:23]} ({Worse is} 30. Nxc6 Bg4+ 31. Kf1 Bh3+ 32. Ke2 Bg4+ 33. Kf1 Bh3+ 34. Ke2 Bd7 $11 (34... Bg4+ 35. Kf1 $11)) ({White must play} 30. Kf3 $1 $18) 30... Rxe5 $1 {[%emt 0:00:00] Weighted Error Value: White=0.29 (precise) /Black=0.30.  Missed win:     	White=1     	---        Mistake:       	White=4     	Black=5      Inaccurate:     	White=1     	Black=1      OK:         	White=8     	Black=6      Best:        	White=3     	---        Strong:       	White=1     	Black=3} 1/2-1/2